[Event "28th Bosnjaci Open 2024"]
[Site "Bosnjaci"]
[Date "2024.01.08"]
[Round "8.10"]
[White "Grgantov, Marin"]
[Black "Vucenovic, Damian"]
[Result "1-0"]
[ECO "C49"]
[WhiteElo "1973"]
[BlackElo "2193"]
[Annotator "RC"]
[PlyCount "109"]
[EventDate "2024.01.02"]
[EventType "swiss"]
[EventCountry "CRO"]
[SourceTitle "playchess.com"]
[Source "ChessBase"]
[SourceQuality "1"]
[TimeControl "5400+30"]

1. e4 {[%emt 0:00:03]} e5 {[%emt 0:00:36]} 2. Nf3 {[%emt 0:00:11]} Nc6 {[%emt 0:00:26]} 3. Nc3 {[%emt 0:00:14]} Nf6 {[%emt 0:00:34]} 4. Bb5 {[%emt 0:00:07]} Bb4 {[%emt 0:00:38]} 5. O-O {[%emt 0:00:15]} O-O {[%emt 0:00:31]} 6. d3 {[%emt 0:00:20]} d6 {[%emt 0:00:53]} 7. Bg5 {[%emt 0:00:23]} Ne7 {[%emt 0:00:49]} 8. Bxf6 {[%emt 0:00:28]} gxf6 {[%emt 0:00:31]} 9. d4 {[%emt 0:00:05]} c6 {[%emt 0:08:03]} 10. Bd3 {[%emt 0:00:06]} Ng6 {[%emt 0:01:09]} 11. Ne2 {[%emt 0:00:15]} Ba5 {[%emt 0:03:06]} 12. Ng3 {[%emt 0:04:54]} Kh8 {[%emt 0:03:02]} 13. c3 {[%emt 0:00:09]} Bb6 {[%emt 0:02:22]} 14. Nf5 {[%emt 0:11:04]} Rg8 {[%emt 0:06:53]} 15. g3 {[%emt 0:03:08]} Be6 {[%emt 0:07:06]} 16. Re1 {[%emt 0:14:59]} Qd7 {[%emt 0:01:54]} 17. Kf1 {[%emt 0:23:23]} Rad8 {[%emt 0:10:44]} 18. Qe2 {[%emt 0:02:47]} d5 {[%emt 0:07:15]} 19. Rad1 {[%emt 0:01:49]} dxe4 {[%emt 0:10:13]} 20. Qxe4 {[%emt 0:00:07]} Bd5 {[%emt 0:01:01]} 21. Qg4 {[%emt 0:17:26]} Qe6 {[%emt 0:26:59]} 22. Qh5 {[%emt 0:02:22]} Bc4 {[%emt 0:00:38]} 23. b3 {[%emt 0:01:10]} Bxd3+ {[%emt 0:00:43]} 24. Rxd3 {[%emt 0:00:00]} c5 {[%emt 0:01:27]} 25. Rdd1 {[%emt 0:03:31]} cxd4 {[%emt 0:00:07]} 26. cxd4 {[%emt 0:01:17]} Qc6 {[%emt 0:00:13]} 27. dxe5 {[%emt 0:05:31]} Rxd1 {[%emt 0:01:25]} 28. Rxd1 {[%emt 0:00:01]} Qc2 {[%emt 0:01:29]} 29. N3d4 {[%emt 0:00:23]} Qxa2 {[%emt 0:02:18]} 30. exf6 {[%emt 0:00:18]} Bxd4 {[%emt 0:00:56]} 31. Nxd4 {[%emt 0:00:49]} Qa6+ {[%emt 0:00:11]} 32. Qb5 {[%emt 0:00:50]} Qxf6 {[%emt 0:00:04]} 33. Qxb7 {[%emt 0:02:36]} Rd8 {[%emt 0:00:04]} 34. Qe4 {[%emt 0:01:07]} Ne5 {[%emt 0:01:46]} 35. Re1 {[%emt 0:01:15]} Ng6 {[%emt 0:01:17]} 36. Nf5 {[%emt 0:01:15]} h5 {[%emt 0:00:24]} 37. Ne7 {[%emt 0:01:00]} Qa6+ {[%emt 0:00:37]} 38. Kg1 {[%emt 0:00:22]} Rf8 {[%emt 0:00:29]} 39. Qf5 {[%emt 0:00:41]} Kg7 {[%emt 0:00:17]} 40. Qxh5 {[%emt 0:00:38]} Re8 {[%emt 0:00:03]} 41. Nf5+ {[%emt 0:00:12]} Kf6 {[%emt 0:00:51]} 42. Rxe8 {[%emt 0:00:08]} Qa5 {[%emt 0:00:08]} 43. Qf3 {[%emt 0:01:02]} Ne5 {[%emt 0:00:40]} 44. Qe4 {[%emt 0:00:47]} Ng6 {[%emt 0:00:50]} 45. Kg2 {[%emt 0:00:22]} Qb5 {[%emt 0:00:32]} 46. Nd4 {[%emt 0:00:26]} Qb4 {[%emt 0:00:39]} 47. h4 {[%emt 0:00:30]} Qa5 {[%emt 0:00:33]} 48. Qf5+ {[%emt 0:00:11]} Qxf5 {[%emt 0:00:09]} 49. Nxf5 {[%emt 0:00:01]} Kxf5 {[%emt 0:00:05]} 50. Ra8 {[%emt 0:00:10]} Kg4 {[%emt 0:00:05]} 51. f3+ {[%emt 0:00:06]} Kh5 {[%emt 0:00:04]} 52. Rxa7 {[%emt 0:00:04]} Kh6 {[%emt 0:00:13]} 53. b4 {[%emt 0:00:10]} f5 {[%emt 0:00:05]} 54. Ra6 {[%emt 0:00:06]} Kh5 {[%emt 0:00:14]} 55. Rxg6 {[%emt 0:00:10]} 1-0

[Event "28th Bosnjaci Open 2024"]
[Site "Bosnjaci"]
[Date "2024.01.08"]
[Round "8.11"]
[White "Kovacevic, Blazimir"]
[Black "Saric, Kristina"]
[Result "1-0"]
[ECO "D61"]
[WhiteElo "2381"]
[BlackElo "2111"]
[Annotator "RC"]
[PlyCount "77"]
[EventDate "2024.01.02"]
[EventType "swiss"]
[EventCountry "CRO"]
[SourceTitle "playchess.com"]
[Source "ChessBase"]
[SourceQuality "1"]
[TimeControl "5400+30"]

1. d4 {[%emt 0:00:04]} d5 {[%emt 0:00:15]} 2. c4 {[%emt 0:00:05]} c6 {[%emt 0:00:10]} 3. Nf3 {[%emt 0:00:21]} Nf6 {[%emt 0:00:20]} 4. Nc3 {[%emt 0:01:57]} e6 {[%emt 0:00:29]} 5. Bg5 {[%emt 0:01:19]} Be7 {[%emt 0:02:30]} 6. e3 {[%emt 0:00:52]} Nbd7 {[%emt 0:02:55]} 7. Qc2 {[%emt 0:02:46]} O-O {[%emt 0:03:51]} 8. Rd1 {[%emt 0:01:53]} b6 {[%emt 0:01:25]} 9. Bd3 {[%emt 0:05:34]} dxc4 {[%emt 0:05:14]} 10. Bxc4 {[%emt 0:00:05]} Nd5 {[%emt 0:00:33]} 11. Bxe7 {[%emt 0:01:29]} Qxe7 {[%emt 0:00:17]} 12. O-O {[%emt 0:02:05]} Bb7 {[%emt 0:05:50]} 13. e4 {[%emt 0:02:15]} Nxc3 {[%emt 0:01:32]} 14. bxc3 {[%emt 0:00:31]} e5 {[%emt 0:09:06]} 15. Rfe1 {[%emt 0:04:10]} Rad8 {[%emt 0:01:22]} 16. Qb3 {[%emt 0:05:31]} b5 {[%emt 0:14:26]} 17. Bf1 {[%emt 0:03:00]} a6 {[%emt 0:00:54]} 18. a4 {[%emt 0:04:01]} Rfe8 {[%emt 0:03:02]} 19. g3 {[%emt 0:04:55]} Qf6 {[%emt 0:04:20]} 20. Re3 {[%emt 0:08:30]} c5 {[%emt 0:05:11]} 21. d5 {[%emt 0:07:36]} c4 {[%emt 0:04:38]} 22. Qb4 {[%emt 0:00:37]} Qb6 {[%emt 0:01:54]} 23. Rb1 {[%emt 0:04:37]} f5 {[%emt 0:00:51]} 24. exf5 {[%emt 0:12:14]} Bxd5 {[%emt 0:00:43]} 25. axb5 {[%emt 0:01:18]} a5 {[%emt 0:01:06]} 26. Qb2 {[%emt 0:02:02]} Qf6 {[%emt 0:01:46]} 27. Qa2 {[%emt 0:04:26]} Nb6 {[%emt 0:01:54]} 28. Rbe1 {[%emt 0:00:06]} Qxf5 {[%emt 0:03:26]} 29. Nxe5 {[%emt 0:00:58]} Rxe5 {[%emt 0:00:45]} 30. Rxe5 {[%emt 0:00:06]} Qf3 {[%emt 0:00:02]} 31. Rxd5 {[%emt 0:00:20]} Qxd5 {[%emt 0:00:07]} 32. Qxa5 {[%emt 0:01:00]} Rb8 {[%emt 0:01:56]} 33. Qb4 {[%emt 0:02:33]} Rc8 {[%emt 0:00:46]} 34. Bh3 {[%emt 0:04:27]} Qd2 {[%emt 0:00:14]} 35. Qe7 {[%emt 0:00:20]} Rd8 {[%emt 0:00:41]} 36. Qe6+ {[%emt 0:01:59]} Kf8 {[%emt 0:00:07]} 37. Qe7+ {[%emt 0:03:00]} Kg8 {[%emt 0:00:05]} 38. Be6+ {[%emt 0:00:08]} Kh8 {[%emt 0:00:05]} 39. Bxc4 {[%emt 0:00:33]} 1-0

[Event "28th Bosnjaci Open 2024"]
[Site "Bosnjaci"]
[Date "2024.01.08"]
[Round "8.12"]
[White "Berke, Ana"]
[Black "Jocev, Milan"]
[Result "1/2-1/2"]
[ECO "C90"]
[WhiteElo "2092"]
[BlackElo "2376"]
[Annotator "RC"]
[PlyCount "38"]
[EventDate "2024.01.02"]
[EventType "swiss"]
[EventCountry "CRO"]
[SourceTitle "playchess.com"]
[Source "ChessBase"]
[SourceQuality "1"]
[TimeControl "5400+30"]

1. e4 {[%emt 0:00:30]} e5 {[%emt 0:02:36]} 2. Nf3 {[%emt 0:00:05]} Nc6 {[%emt 0:00:06]} 3. Bb5 {[%emt 0:00:05]} a6 {[%emt 0:00:04]} 4. Ba4 {[%emt 0:00:04]} Nf6 {[%emt 0:00:03]} 5. d3 {[%emt 0:00:10]} b5 {[%emt 0:00:13]} 6. Bb3 {[%emt 0:00:06]} Be7 {[%emt 0:00:06]} 7. O-O {[%emt 0:00:09]} d6 {[%emt 0:00:22]} 8. c3 {[%emt 0:00:07]} O-O {[%emt 0:00:14]} 9. Re1 {[%emt 0:00:05]} Na5 {[%emt 0:01:06]} 10. Bc2 {[%emt 0:00:21]} c5 {[%emt 0:00:08]} 11. Nbd2 {[%emt 0:00:09]} Nc6 {[%emt 0:00:41]} 12. Nf1 {[%emt 0:00:10]} Re8 {[%emt 0:01:41]} 13. h3 {[%emt 0:00:06]} h6 {[%emt 0:00:15]} 14. d4 {[%emt 0:00:27]} cxd4 {[%emt 0:02:47]} 15. cxd4 {[%emt 0:00:09]} Nxd4 {[%emt 0:00:56]} 16. Nxd4 {[%emt 0:00:06]} exd4 {[%emt 0:00:05]} 17. Qxd4 {[%emt 0:00:06]} Bb7 {[%emt 0:00:23]} 18. Ng3 {[%emt 0:01:28]} Rc8 {[%emt 0:02:08]} 19. Bb3 {[%emt 0:01:48]} d5 {[%emt 0:05:55]} 1/2-1/2

[Event "28th Bosnjaci Open 2024"]
[Site "Bosnjaci"]
[Date "2024.01.08"]
[Round "8.13"]
[White "Biti, Ozren"]
[Black "Matic, Zeljko"]
[Result "1-0"]
[ECO "B01"]
[WhiteElo "2308"]
[BlackElo "2077"]
[Annotator "RC"]
[PlyCount "129"]
[EventDate "2024.01.02"]
[EventType "swiss"]
[EventCountry "CRO"]
[SourceTitle "playchess.com"]
[Source "ChessBase"]
[SourceQuality "1"]
[TimeControl "5400+30"]

1. e4 {[%emt 0:02:30]} d5 {[%emt 0:00:36]} 2. exd5 {[%emt 0:00:10]} Qxd5 {[%emt 0:00:07]} 3. Nf3 {[%emt 0:00:19]} Bg4 {[%emt 0:01:10]} 4. Be2 {[%emt 0:00:13]} Nf6 {[%emt 0:01:21]} 5. d4 {[%emt 0:00:16]} c6 {[%emt 0:00:08]} 6. O-O {[%emt 0:00:57]} e6 {[%emt 0:00:13]} 7. c4 {[%emt 0:00:31]} Qd6 {[%emt 0:00:51]} 8. Nc3 {[%emt 0:03:55]} Be7 {[%emt 0:00:17]} 9. Be3 {[%emt 0:03:44]} O-O {[%emt 0:00:15]} 10. h3 {[%emt 0:01:37]} Bh5 {[%emt 0:01:12]} 11. Qd2 {[%emt 0:04:15]} Qc7 {[%emt 0:01:01]} 12. Rfd1 {[%emt 0:02:49]} Rd8 {[%emt 0:04:19]} 13. Rac1 {[%emt 0:05:24]} Nbd7 {[%emt 0:00:20]} 14. Qc2 {[%emt 0:06:12]} Rac8 {[%emt 0:04:05]} 15. Qb3 {[%emt 0:05:39]} Qb8 {[%emt 0:01:24]} 16. a3 {[%emt 0:08:41]} a6 {[%emt 0:04:50]} 17. c5 {[%emt 0:08:31]} Bxf3 {[%emt 0:11:07]} 18. Bxf3 {[%emt 0:00:26]} Nd5 {[%emt 0:05:14]} 19. Nxd5 {[%emt 0:02:49]} exd5 {[%emt 0:00:10]} 20. Bg4 {[%emt 0:01:47]} g6 {[%emt 0:02:38]} 21. g3 {[%emt 0:01:14]} f5 {[%emt 0:00:24]} 22. Bf4 {[%emt 0:00:27]} Qa7 {[%emt 0:00:06]} 23. Qe3 {[%emt 0:03:10]} Bf6 {[%emt 0:02:38]} 24. Qe6+ {[%emt 0:02:12]} Kg7 {[%emt 0:00:23]} 25. Bxf5 {[%emt 0:06:56]} gxf5 {[%emt 0:00:12]} 26. Re1 {[%emt 0:02:22]} b5 {[%emt 0:08:56]} 27. Qxf5 {[%emt 0:10:11]} Rf8 {[%emt 0:23:48]} 28. Re6 {[%emt 0:02:03]} Rf7 {[%emt 0:00:11]} 29. Rce1 {[%emt 0:03:45]} Rcf8 {[%emt 0:05:10]} 30. Rxc6 {[%emt 0:03:13]} Bxd4 {[%emt 0:09:01]} 31. Qxd5 {[%emt 0:01:34]} Bxc5 {[%emt 0:02:47]} 32. Re2 {[%emt 0:06:54]} Rxf4 {[%emt 0:02:32]} 33. gxf4 {[%emt 0:00:14]} Rf6 {[%emt 0:01:46]} 34. b4 {[%emt 0:01:24]} Bf8 {[%emt 0:00:43]} 35. Qg5+ {[%emt 0:00:37]} Kf7 {[%emt 0:00:33]} 36. Qd5+ {[%emt 0:00:33]} Kg7 {[%emt 0:00:26]} 37. Re3 {[%emt 0:00:44]} Rg6+ {[%emt 0:00:23]} 38. Rxg6+ {[%emt 0:00:16]} hxg6 {[%emt 0:00:03]} 39. Re6 {[%emt 0:00:33]} Nf6 {[%emt 0:01:32]} 40. Qe5 {[%emt 0:00:17]} Qf7 {[%emt 0:00:11]} 41. Rxa6 {[%emt 0:00:09]} Qe7 {[%emt 0:03:13]} 42. Qxe7+ {[%emt 0:01:03]} Bxe7 {[%emt 0:00:03]} 43. Rb6 {[%emt 0:00:44]} Nd5 {[%emt 0:00:24]} 44. Rxb5 {[%emt 0:00:10]} Nc3 {[%emt 0:00:35]} 45. Rb7 {[%emt 0:00:17]} Kf6 {[%emt 0:00:08]} 46. Kg2 {[%emt 0:00:35]} Bd6 {[%emt 0:00:17]} 47. Kf3 {[%emt 0:00:28]} Ke6 {[%emt 0:00:18]} 48. h4 {[%emt 0:00:47]} Nd5 {[%emt 0:00:25]} 49. Ke4 {[%emt 0:00:31]} Bxf4 {[%emt 0:02:28]} 50. Rg7 {[%emt 0:00:32]} Bc1 {[%emt 0:00:44]} 51. Rxg6+ {[%emt 0:00:40]} Nf6+ {[%emt 0:00:03]} 52. Kd3 {[%emt 0:00:11]} Bxa3 {[%emt 0:00:09]} 53. Kc4 {[%emt 0:00:23]} Bc1 {[%emt 0:00:58]} 54. b5 {[%emt 0:00:30]} Kf5 {[%emt 0:00:50]} 55. Rg1 {[%emt 0:00:33]} Bf4 {[%emt 0:00:11]} 56. b6 {[%emt 0:00:26]} Ke4 {[%emt 0:02:48]} 57. b7 {[%emt 0:00:44]} Kf5 {[%emt 0:00:27]} 58. Kb5 {[%emt 0:00:36]} Ne4 {[%emt 0:00:56]} 59. Kc6 {[%emt 0:00:22]} Be5 {[%emt 0:00:29]} 60. Re1 {[%emt 0:00:27]} Bb8 {[%emt 0:00:14]} 61. h5 {[%emt 0:00:40]} Nf6 {[%emt 0:00:42]} 62. Rh1 {[%emt 0:00:31]} Nh7 {[%emt 0:00:17]} 63. Kd7 {[%emt 0:00:28]} Kg4 {[%emt 0:01:19]} 64. Kc8 {[%emt 0:00:20]} Ba7 {[%emt 0:00:04]} 65. Ra1 {[%emt 0:00:18]} 1-0

[Event "28th Bosnjaci Open 2024"]
[Site "Bosnjaci"]
[Date "2024.01.08"]
[Round "8.14"]
[White "Car, Filip"]
[Black "Alimpic, Aleksa"]
[Result "1/2-1/2"]
[ECO "D27"]
[WhiteElo "2127"]
[BlackElo "2282"]
[Annotator "RC"]
[PlyCount "37"]
[EventDate "2024.01.02"]
[EventType "swiss"]
[EventCountry "CRO"]
[SourceTitle "playchess.com"]
[Source "ChessBase"]
[SourceQuality "1"]
[TimeControl "5400+30"]

1. d4 {[%emt 0:00:03]} d5 {[%emt 0:00:11]} 2. c4 {[%emt 0:00:07]} dxc4 {[%emt 0:00:04]} 3. Nf3 {[%emt 0:00:10]} Nf6 {[%emt 0:00:07]} 4. e3 {[%emt 0:00:05]} e6 {[%emt 0:00:05]} 5. Bxc4 {[%emt 0:00:10]} c5 {[%emt 0:00:06]} 6. O-O {[%emt 0:00:07]} a6 {[%emt 0:00:04]} 7. dxc5 {[%emt 0:00:17]} Bxc5 {[%emt 0:00:12]} 8. Qxd8+ {[%emt 0:00:18]} Kxd8 {[%emt 0:00:04]} 9. Be2 {[%emt 0:00:27]} Ke7 {[%emt 0:00:10]} 10. Nbd2 {[%emt 0:01:11]} Bd7 {[%emt 0:00:50]} 11. b3 {[%emt 0:01:56]} Bb5 {[%emt 0:01:40]} 12. Nc4 {[%emt 0:02:06]} Nbd7 {[%emt 0:00:28]} 13. Bb2 {[%emt 0:01:43]} Bxc4 {[%emt 0:00:38]} 14. Bxc4 {[%emt 0:00:53]} Rhc8 {[%emt 0:04:43]} 15. Rfd1 {[%emt 0:13:41]} Rc7 {[%emt 0:04:47]} 16. Rac1 {[%emt 0:01:48]} Rac8 {[%emt 0:02:25]} 17. Kf1 {[%emt 0:04:44]} b5 {[%emt 0:10:27]} 18. Bd3 {[%emt 0:03:16]} Bb4 {[%emt 0:03:54]} 19. Rxc7 {[%emt 0:20:39]} 1/2-1/2

[Event "28th Bosnjaci Open 2024"]
[Site "Bosnjaci"]
[Date "2024.01.08"]
[Round "8.15"]
[White "Troselj, Ivan"]
[Black "Cupic, Lovro"]
[Result "0-1"]
[ECO "B22"]
[WhiteElo "2067"]
[BlackElo "2265"]
[Annotator "RC"]
[PlyCount "74"]
[EventDate "2024.01.02"]
[EventType "swiss"]
[EventCountry "CRO"]
[SourceTitle "playchess.com"]
[Source "ChessBase"]
[SourceQuality "1"]
[TimeControl "5400+30"]

1. Nf3 {[%emt 0:00:07]} c5 {[%emt 0:00:08]} 2. e4 {[%emt 0:00:06]} e6 {[%emt 0:00:49]} 3. c3 {[%emt 0:00:04]} d5 {[%emt 0:00:36]} 4. exd5 {[%emt 0:00:05]} Qxd5 {[%emt 0:00:27]} 5. d4 {[%emt 0:00:02]} Nf6 {[%emt 0:00:25]} 6. Na3 {[%emt 0:00:09]} Nc6 {[%emt 0:00:15]} 7. Nb5 {[%emt 0:00:29]} Qd8 {[%emt 0:00:05]} 8. Bf4 {[%emt 0:00:20]} Nd5 {[%emt 0:00:07]} 9. Bg3 {[%emt 0:01:01]} a6 {[%emt 0:00:08]} 10. c4 {[%emt 0:01:09]} axb5 {[%emt 0:01:44]} 11. cxd5 {[%emt 0:00:08]} exd5 {[%emt 0:00:11]} 12. Qe2+ {[%emt 0:01:30]} Be7 {[%emt 0:01:12]} 13. dxc5 {[%emt 0:00:32]} Qa5+ {[%emt 0:02:03]} 14. Qd2 {[%emt 0:01:11]} Bxc5 {[%emt 0:00:42]} 15. Qxa5 {[%emt 0:00:45]} Rxa5 {[%emt 0:00:05]} 16. Be2 {[%emt 0:01:27]} Bb4+ {[%emt 0:00:14]} 17. Kf1 {[%emt 0:01:23]} Bc5 {[%emt 0:03:46]} 18. Bc7 {[%emt 0:14:39]} b6 {[%emt 0:03:27]} 19. g3 {[%emt 0:04:09]} Bh3+ {[%emt 0:01:35]} 20. Kg1 {[%emt 0:04:03]} O-O {[%emt 0:02:49]} 21. Ng5 {[%emt 0:03:37]} Bf5 {[%emt 0:03:06]} 22. Kg2 {[%emt 0:01:48]} h6 {[%emt 0:01:14]} 23. g4 {[%emt 0:03:27]} Bd7 {[%emt 0:00:59]} 24. Nh3 {[%emt 0:00:16]} Nd4 {[%emt 0:00:12]} 25. Bf3 {[%emt 0:00:14]} Nxf3 {[%emt 0:00:11]} 26. Kxf3 {[%emt 0:00:02]} h5 {[%emt 0:00:13]} 27. Nf4 {[%emt 0:00:18]} hxg4+ {[%emt 0:03:00]} 28. Kg2 {[%emt 0:06:43]} d4 {[%emt 0:05:26]} 29. Rhc1 {[%emt 0:01:48]} Ra7 {[%emt 0:00:08]} 30. b4 {[%emt 0:00:41]} Rxc7 {[%emt 0:00:12]} 31. bxc5 {[%emt 0:00:27]} Rxc5 {[%emt 0:05:47]} 32. Rd1 {[%emt 0:05:06]} Rd8 {[%emt 0:00:08]} 33. Rab1 {[%emt 0:01:17]} Bc6+ {[%emt 0:00:22]} 34. Kg3 {[%emt 0:00:14]} Rc3+ {[%emt 0:00:08]} 35. Kh4 {[%emt 0:00:22]} f6 {[%emt 0:00:24]} 36. Ne6 {[%emt 0:00:24]} Bd7 {[%emt 0:00:11]} 37. Re1 {[%emt 0:01:01]} Re8 {[%emt 0:00:27]} 0-1

[Event "28th Bosnjaci Open 2024"]
[Site "Bosnjaci"]
[Date "2024.01.08"]
[Round "8.16"]
[White "Begic, Domagoj"]
[Black "Bobanac, Miro"]
[Result "1/2-1/2"]
[ECO "B24"]
[WhiteElo "2052"]
[BlackElo "2238"]
[Annotator "RC"]
[PlyCount "106"]
[EventDate "2024.01.02"]
[EventType "swiss"]
[EventCountry "CRO"]
[SourceTitle "playchess.com"]
[Source "ChessBase"]
[SourceQuality "1"]
[TimeControl "5400+30"]

1. e4 {[%emt 0:00:41]} c5 {[%emt 0:00:44]} 2. Nc3 {[%emt 0:01:43]} Nc6 {[%emt 0:01:23]} 3. g3 {[%emt 0:00:22]} e6 {[%emt 0:01:20]} 4. Bg2 {[%emt 0:00:10]} a6 {[%emt 0:00:15]} 5. a4 {[%emt 0:00:49]} Rb8 {[%emt 0:00:42]} 6. Nge2 {[%emt 0:03:25]} b5 {[%emt 0:01:32]} 7. O-O {[%emt 0:10:37]} b4 {[%emt 0:00:53]} 8. Nb1 {[%emt 0:00:17]} Nf6 {[%emt 0:02:15]} 9. d3 {[%emt 0:02:48]} Be7 {[%emt 0:03:09]} 10. Nd2 {[%emt 0:03:43]} d5 {[%emt 0:13:37]} 11. b3 {[%emt 0:21:15]} Bb7 {[%emt 0:04:04]} 12. exd5 {[%emt 0:08:31]} exd5 {[%emt 0:08:08]} 13. Bb2 {[%emt 0:04:12]} O-O {[%emt 0:00:54]} 14. Nf4 {[%emt 0:07:22]} Na5 {[%emt 0:05:32]} 15. Re1 {[%emt 0:02:54]} Bd6 {[%emt 0:00:56]} 16. Bxf6 {[%emt 0:09:12]} Qxf6 {[%emt 0:00:23]} 17. Nxd5 {[%emt 0:00:15]} Qd8 {[%emt 0:00:23]} 18. Nc4 {[%emt 0:08:45]} Bxd5 {[%emt 0:01:10]} 19. Bxd5 {[%emt 0:00:13]} Nxc4 {[%emt 0:00:11]} 20. Bxc4 {[%emt 0:00:31]} a5 {[%emt 0:01:09]} 21. Qf3 {[%emt 0:00:37]} Be7 {[%emt 0:03:15]} 22. Re4 {[%emt 0:00:48]} Bf6 {[%emt 0:02:15]} 23. Rae1 {[%emt 0:00:11]} Qd7 {[%emt 0:01:56]} 24. Kg2 {[%emt 0:00:47]} h6 {[%emt 0:03:44]} 25. h4 {[%emt 0:00:49]} Qb7 {[%emt 0:03:31]} 26. Qf5 {[%emt 0:01:36]} Qc8 {[%emt 0:02:03]} 27. Qxc8 {[%emt 0:04:36]} Rfxc8 {[%emt 0:01:18]} 28. h5 {[%emt 0:00:01]} Kf8 {[%emt 0:03:18]} 29. f4 {[%emt 0:00:29]} Re8 {[%emt 0:02:34]} 30. Bb5 {[%emt 0:00:43]} Re7 {[%emt 0:02:41]} 31. Rxe7 {[%emt 0:00:50]} Bxe7 {[%emt 0:00:11]} 32. Kf3 {[%emt 0:00:01]} Rd8 {[%emt 0:00:41]} 33. Bc4 {[%emt 0:00:36]} Bf6 {[%emt 0:00:57]} 34. Bb5 {[%emt 0:01:06]} Bd4 {[%emt 0:03:56]} 35. Kg4 {[%emt 0:01:29]} Rb8 {[%emt 0:00:47]} 36. Re2 {[%emt 0:00:17]} Rd8 {[%emt 0:00:06]} 37. Kf3 {[%emt 0:01:35]} Bf6 {[%emt 0:01:39]} 38. g4 {[%emt 0:00:34]} Rb8 {[%emt 0:01:07]} 39. Bc6 {[%emt 0:00:20]} Rc8 {[%emt 0:00:34]} 40. Be4 {[%emt 0:00:22]} Re8 {[%emt 0:01:52]} 41. Rg2 {[%emt 0:00:18]} Bd4 {[%emt 0:06:52]} 42. g5 {[%emt 0:01:50]} Ke7 {[%emt 0:01:20]} 43. Kg4 {[%emt 0:01:37]} Kd6 {[%emt 0:02:46]} 44. gxh6 {[%emt 0:01:14]} gxh6 {[%emt 0:00:11]} 45. Kf5 {[%emt 0:00:07]} Rd8 {[%emt 0:01:22]} 46. Bb7 {[%emt 0:01:09]} Kc7 {[%emt 0:01:42]} 47. Be4 {[%emt 0:00:55]} Kd6 {[%emt 0:00:08]} 48. Bb7 {[%emt 0:00:48]} Ke7 {[%emt 0:00:38]} 49. Re2+ {[%emt 0:00:27]} Kf8 {[%emt 0:00:34]} 50. Bc6 {[%emt 0:00:37]} Bg7 {[%emt 0:00:43]} 51. Be4 {[%emt 0:00:28]} Bd4 {[%emt 0:00:16]} 52. Bc6 {[%emt 0:00:13]} Bg7 {[%emt 0:00:25]} 53. Be4 {[%emt 0:00:18]} Bd4 {[%emt 0:01:15]} 1/2-1/2

[Event "28th Bosnjaci Open 2024"]
[Site "Bosnjaci"]
[Date "2024.01.08"]
[Round "8.17"]
[White "Kejzar, Petra"]
[Black "Rosic, Slavko S"]
[Result "1/2-1/2"]
[ECO "E11"]
[WhiteElo "2025"]
[BlackElo "2231"]
[Annotator "RC"]
[PlyCount "144"]
[EventDate "2024.01.02"]
[EventType "swiss"]
[EventCountry "CRO"]
[SourceTitle "playchess.com"]
[Source "ChessBase"]
[SourceQuality "1"]
[TimeControl "5400+30"]

1. Nf3 {[%emt 0:00:03]} Nf6 {[%emt 0:04:19]} 2. c4 {[%emt 0:00:21]} e6 {[%emt 0:02:00]} 3. d4 {[%emt 0:00:06]} d5 {[%emt 0:00:10]} 4. g3 {[%emt 0:00:05]} Bb4+ {[%emt 0:02:27]} 5. Bd2 {[%emt 0:00:30]} a5 {[%emt 0:02:11]} 6. Bg2 {[%emt 0:01:03]} O-O {[%emt 0:00:45]} 7. O-O {[%emt 0:00:33]} dxc4 {[%emt 0:00:34]} 8. Qc2 {[%emt 0:00:33]} Bxd2 {[%emt 0:05:10]} 9. Nbxd2 {[%emt 0:00:17]} Ra7 {[%emt 0:12:50]} 10. Nxc4 {[%emt 0:03:17]} b6 {[%emt 0:00:38]} 11. Rac1 {[%emt 0:04:29]} Bb7 {[%emt 0:03:51]} 12. Rfd1 {[%emt 0:04:17]} Be4 {[%emt 0:02:57]} 13. Qd2 {[%emt 0:00:20]} Nbd7 {[%emt 0:04:50]} 14. Qf4 {[%emt 0:03:46]} Qa8 {[%emt 0:02:52]} 15. Ncd2 {[%emt 0:04:48]} Bb7 {[%emt 0:03:20]} 16. Re1 {[%emt 0:08:12]} c5 {[%emt 0:02:12]} 17. Nc4 {[%emt 0:04:19]} cxd4 {[%emt 0:01:43]} 18. Qxd4 {[%emt 0:00:37]} Qb8 {[%emt 0:12:59]} 19. Nd6 {[%emt 0:21:02]} Ba6 {[%emt 0:07:46]} 20. e4 {[%emt 0:12:18]} Rd8 {[%emt 0:03:21]} 21. Red1 {[%emt 0:01:03]} Be2 {[%emt 0:03:35]} 22. Rd2 {[%emt 0:02:31]} Bxf3 {[%emt 0:00:31]} 23. Bxf3 {[%emt 0:00:01]} e5 {[%emt 0:00:22]} 24. Qe3 {[%emt 0:01:59]} Nc5 {[%emt 0:00:50]} 25. Rcd1 {[%emt 0:03:51]} Rad7 {[%emt 0:01:08]} 26. Nc4 {[%emt 0:01:14]} h6 {[%emt 0:06:26]} 27. Rxd7 {[%emt 0:01:34]} Rxd7 {[%emt 0:00:06]} 28. Rxd7 {[%emt 0:00:41]} Ncxd7 {[%emt 0:00:02]} 29. Be2 {[%emt 0:06:39]} Qc7 {[%emt 0:00:54]} 30. f3 {[%emt 0:01:02]} Qc6 {[%emt 0:03:37]} 31. Qa3 {[%emt 0:00:52]} Qc8 {[%emt 0:03:40]} 32. Bf1 {[%emt 0:04:58]} Qc7 {[%emt 0:01:39]} 33. Qe7 {[%emt 0:01:45]} Qb8 {[%emt 0:01:01]} 34. Qa3 {[%emt 0:04:34]} h5 {[%emt 0:01:04]} 35. Nd6 {[%emt 0:00:31]} Nc5 {[%emt 0:00:47]} 36. Nf5 {[%emt 0:00:22]} Qd8 {[%emt 0:00:26]} 37. Qc3 {[%emt 0:00:45]} g6 {[%emt 0:00:21]} 38. Ne3 {[%emt 0:00:28]} Qe7 {[%emt 0:01:29]} 39. Bc4 {[%emt 0:00:46]} Qd6 {[%emt 0:00:21]} 40. Bd5 {[%emt 0:00:35]} Ncd7 {[%emt 0:00:48]} 41. Qc4 {[%emt 0:01:30]} Kg7 {[%emt 0:02:02]} 42. a3 {[%emt 0:00:58]} h4 {[%emt 0:01:03]} 43. Kg2 {[%emt 0:00:42]} Qf8 {[%emt 0:00:30]} 44. Qc7 {[%emt 0:00:26]} hxg3 {[%emt 0:00:25]} 45. hxg3 {[%emt 0:00:04]} Qe7 {[%emt 0:01:09]} 46. Bb7 {[%emt 0:00:22]} Ne8 {[%emt 0:00:35]} 47. Qc3 {[%emt 0:00:40]} Nef6 {[%emt 0:00:24]} 48. Bc6 {[%emt 0:00:59]} Nc5 {[%emt 0:00:14]} 49. Nc4 {[%emt 0:01:00]} Ncd7 {[%emt 0:00:38]} 50. f4 {[%emt 0:00:45]} exf4 {[%emt 0:00:47]} 51. e5 {[%emt 0:00:21]} Qc5 {[%emt 0:00:53]} 52. exf6+ {[%emt 0:00:20]} Nxf6 {[%emt 0:00:01]} 53. Ne5 {[%emt 0:00:32]} Qd6 {[%emt 0:01:32]} 54. Ng4 {[%emt 0:00:50]} fxg3 {[%emt 0:00:38]} 55. Qxf6+ {[%emt 0:00:07]} Qxf6 {[%emt 0:00:02]} 56. Nxf6 {[%emt 0:00:01]} Kxf6 {[%emt 0:00:01]} 57. a4 {[%emt 0:00:40]} Ke5 {[%emt 0:00:09]} 58. Kxg3 {[%emt 0:00:13]} f5 {[%emt 0:00:34]} 59. Kf3 {[%emt 0:00:31]} g5 {[%emt 0:00:09]} 60. Bd7 {[%emt 0:00:45]} Kf6 {[%emt 0:00:34]} 61. Ke3 {[%emt 0:00:13]} Ke5 {[%emt 0:00:01]} 62. Kf3 {[%emt 0:00:53]} Kf6 {[%emt 0:00:03]} 63. Bb5 {[%emt 0:00:09]} Ke5 {[%emt 0:00:06]} 64. Bd3 {[%emt 0:00:22]} Kf6 {[%emt 0:00:09]} 65. Be2 {[%emt 0:00:05]} Ke5 {[%emt 0:00:07]} 66. Ke3 {[%emt 0:00:28]} Kd5 {[%emt 0:00:36]} 67. Bd1 {[%emt 0:01:34]} Kc5 {[%emt 0:01:09]} 68. Bc2 {[%emt 0:00:36]} Kb4 {[%emt 0:00:15]} 69. Bxf5 {[%emt 0:00:45]} Kxa4 {[%emt 0:00:23]} 70. Bc2+ {[%emt 0:00:38]} Kb4 {[%emt 0:00:04]} 71. Ke4 {[%emt 0:00:29]} a4 {[%emt 0:00:16]} 72. Kf5 {[%emt 0:00:48]} a3 {[%emt 0:00:08]} 1/2-1/2